[Event "Betsys MČR v online bleskovém šachu 2021"]
[Site "Chess.com"]
[Date "2021.04.17"]
[Round "2"]
[White "avsokol"]
[Black "PetrSoucek"]
[Result "1-0"]
[WhiteElo "2403"]
[BlackElo "2019"]
[TimeControl "180+1"]
[EndTime "9:15:43 PDT"]
[Termination "Uživatel avsokol zvítězil matem"]

1. e4 {[%clk 0:03:00.9]} 1... c5 {[%clk 0:02:58.7]} 2. Nf3 {[%clk 0:03:00.4]}
2... d6 {[%clk 0:02:58.4]} 3. d4 {[%clk 0:03:00.8]} 3... cxd4 {[%clk 0:02:59.3]}
4. Nxd4 {[%clk 0:03:01.1]} 4... Nf6 {[%clk 0:02:58.5]} 5. Nc3 {[%clk 0:03:01.5]}
5... g6 {[%clk 0:02:57.9]} 6. Be3 {[%clk 0:02:58.3]} 6... Bg7 {[%clk 0:02:58]}
7. f3 {[%clk 0:02:58.7]} 7... O-O {[%clk 0:02:58.6]} 8. Qd2 {[%clk 0:02:59]}
8... Nc6 {[%clk 0:02:59.2]} 9. Bc4 {[%clk 0:02:56]} 9... Bd7 {[%clk 0:02:59.4]}
10. h4 {[%clk 0:02:50.7]} 10... Rc8 {[%clk 0:02:56.8]} 11. Bb3 {[%clk
0:02:50.1]} 11... Ne5 {[%clk 0:02:52.6]} 12. O-O-O {[%clk 0:02:42.2]} 12... Nc4
{[%clk 0:02:51.9]} 13. Bxc4 {[%clk 0:02:41]} 13... Rxc4 {[%clk 0:02:52.8]} 14.
Kb1 {[%clk 0:02:40.5]} 14... b5 {[%clk 0:02:44]} 15. h5 {[%clk 0:02:16.9]} 15...
b4 {[%clk 0:02:35.4]} 16. Nd5 {[%clk 0:02:04.3]} 16... Nxd5 {[%clk 0:02:34.3]}
17. exd5 {[%clk 0:02:03.7]} 17... Qc7 {[%clk 0:01:56]} 18. g4 {[%clk 0:01:47.8]}
18... Rc8 {[%clk 0:01:42.1]} 19. hxg6 {[%clk 0:01:46.8]} 19... hxg6 {[%clk
0:01:23.1]} 20. Qh2 {[%clk 0:01:35.9]} 20... f6 {[%clk 0:00:32]} 21. Qh7+ {[%clk
0:01:34.3]} 21... Kf7 {[%clk 0:00:30.7]} 22. Bh6 {[%clk 0:01:34.2]} 22... Rg8
{[%clk 0:00:30.7]} 23. Ne6 {[%clk 0:01:23.3]} 23... Bxe6 {[%clk 0:00:29.3]} 24.
dxe6+ {[%clk 0:01:22.6]} 24... Kf8 {[%clk 0:00:27.7]} 25. Qxg6 {[%clk
0:01:22.4]} 25... Bxh6 {[%clk 0:00:23.3]} 26. Qf7# {[%clk 0:01:22]} 1-0

[Event "Betsys MČR v online bleskovém šachu 2021"]
[Site "Chess.com"]
[Date "2021.04.17"]
[Round "2"]
[White "8_olda_8"]
[Black "adasmrazek"]
[Result "1-0"]
[WhiteElo "1783"]
[BlackElo "1320"]
[TimeControl "180+1"]
[EndTime "9:15:43 PDT"]
[Termination "Uživatel 8_olda_8 zvítězil na čas"]

1. d4 {[%clk 0:03:00.9]} 1... Nf6 {[%clk 0:02:58.2]} 2. c4 {[%clk 0:03:00.6]}
2... g6 {[%clk 0:02:56.9]} 3. Nc3 {[%clk 0:03:00.3]} 3... Bg7 {[%clk 0:02:57.1]}
4. e4 {[%clk 0:03:00.3]} 4... d6 {[%clk 0:02:56.6]} 5. Nf3 {[%clk 0:02:59.6]}
5... O-O {[%clk 0:02:55.1]} 6. Be2 {[%clk 0:02:59]} 6... Nbd7 {[%clk 0:02:55.1]}
7. Be3 {[%clk 0:02:50.3]} 7... e5 {[%clk 0:02:52.4]} 8. d5 {[%clk 0:02:46.7]}
8... Nb6 {[%clk 0:02:41]} 9. Qd2 {[%clk 0:02:43.5]} 9... Ng4 {[%clk 0:02:36.6]}
10. Bg5 {[%clk 0:02:42.7]} 10... f6 {[%clk 0:02:35.4]} 11. Bh4 {[%clk
0:02:36.6]} 11... Bh6 {[%clk 0:01:00.9]} 12. Qd3 {[%clk 0:02:19.1]} 12... g5
{[%clk 0:00:39.5]} 13. Bg3 {[%clk 0:02:15.6]} 13... f5 {[%clk 0:00:38]} 14. h3
{[%clk 0:02:10.7]} 14... fxe4 {[%clk 0:00:28.6]} 15. Nxe4 {[%clk 0:02:05.9]}
15... Nf6 {[%clk 0:00:17.6]} 16. Nexg5 {[%clk 0:01:47.6]} 16... Qe7 {[%clk
0:00:06.6]} 17. O-O {[%clk 0:01:43.4]} 17... Ne8 {[%clk 0:00:03.5]} 18. Ne4
{[%clk 0:01:41.5]} 18... Bf5 {[%clk 0:00:03.3]} 19. Qc2 {[%clk 0:01:30.1]} 1-0

[Event "Betsys MČR v online bleskovém šachu 2021"]
[Site "Chess.com"]
[Date "2021.04.17"]
[Round "2"]
[White "MiroslavBucek"]
[Black "AlenaSouralova"]
[Result "1-0"]
[WhiteElo "1609"]
[BlackElo "913"]
[TimeControl "180+1"]
[EndTime "9:15:43 PDT"]
[Termination "Uživatel MiroslavBucek zvítězil matem"]

1. e4 {[%clk 0:03:00.9]} 1... e5 {[%clk 0:02:58]} 2. Nf3 {[%clk 0:03:00.1]} 2...
Nc6 {[%clk 0:02:54]} 3. Bb5 {[%clk 0:02:59.2]} 3... Bc5 {[%clk 0:02:49.6]} 4.
O-O {[%clk 0:02:58.1]} 4... Nf6 {[%clk 0:02:46.5]} 5. d3 {[%clk 0:02:55.8]} 5...
d6 {[%clk 0:02:40.5]} 6. c3 {[%clk 0:02:32.5]} 6... Be6 {[%clk 0:02:35.4]} 7.
Bg5 {[%clk 0:02:28.2]} 7... Qd7 {[%clk 0:02:29.8]} 8. a4 {[%clk 0:02:24]} 8...
O-O-O {[%clk 0:02:17.2]} 9. d4 {[%clk 0:02:23.5]} 9... exd4 {[%clk 0:02:02.4]}
10. cxd4 {[%clk 0:02:19.8]} 10... Nxd4 {[%clk 0:01:50.1]} 11. Bxd7+ {[%clk
0:02:17.6]} 11... Bxd7 {[%clk 0:01:38.3]} 12. Nxd4 {[%clk 0:02:17.5]} 12... Bxd4
{[%clk 0:01:36.8]} 13. Qxd4 {[%clk 0:02:17]} 13... h6 {[%clk 0:01:29.6]} 14. Be3
{[%clk 0:02:11.2]} 14... g5 {[%clk 0:01:30.5]} 15. Qxa7 {[%clk 0:02:10.2]} 15...
Be6 {[%clk 0:01:13.5]} 16. Qd4 {[%clk 0:02:07.3]} 16... Nd7 {[%clk 0:01:04.6]}
17. Nc3 {[%clk 0:02:05.4]} 17... Rdg8 {[%clk 0:00:58.3]} 18. a5 {[%clk
0:02:03.8]} 18... h5 {[%clk 0:00:36.6]} 19. Bxg5 {[%clk 0:02:00.6]} 19... Rxg5
{[%clk 0:00:35.9]} 20. Qxh8+ {[%clk 0:02:00.1]} 20... Nf8 {[%clk 0:00:29.2]} 21.
Qxf8+ {[%clk 0:01:58.8]} 21... Kd7 {[%clk 0:00:29]} 22. Nd5 {[%clk 0:01:53.3]}
22... Bxd5 {[%clk 0:00:17.2]} 23. exd5 {[%clk 0:01:52]} 23... Rxd5 {[%clk
0:00:13.4]} 24. Qxf7+ {[%clk 0:01:51.7]} 24... Kc6 {[%clk 0:00:12]} 25. Rac1+
{[%clk 0:01:51.3]} 25... Kb5 {[%clk 0:00:09.9]} 26. Qxd5+ {[%clk 0:01:50.5]}
26... Ka6 {[%clk 0:00:08.5]} 27. Rxc7 {[%clk 0:01:48.4]} 27... h4 {[%clk
0:00:05.2]} 28. Qxb7+ {[%clk 0:01:48.1]} 28... Kxa5 {[%clk 0:00:04.7]} 29. Ra1#
{[%clk 0:01:48]} 1-0

[Event "Betsys MČR v online bleskovém šachu 2021"]
[Site "Chess.com"]
[Date "2021.04.17"]
[Round "2"]
[White "povrlak60"]
[Black "Simaril76"]
[Result "1-0"]
[WhiteElo "1519"]
[BlackElo "708"]
[TimeControl "180+1"]
[EndTime "9:15:43 PDT"]
[Termination "Uživatel povrlak60 zvítězil na čas"]

1. e4 {[%clk 0:03:00.9]} 1... c5 {[%clk 0:02:58.9]} 2. Nc3 {[%clk 0:02:59.7]}
2... Nc6 {[%clk 0:02:59.1]} 3. g3 {[%clk 0:02:58.7]} 3... g6 {[%clk 0:02:59.1]}
4. Bg2 {[%clk 0:02:58.4]} 4... Bg7 {[%clk 0:02:59.3]} 5. d3 {[%clk 0:02:58.6]}
5... Nf6 {[%clk 0:02:59.8]} 6. Nge2 {[%clk 0:02:58.2]} 6... e5 {[%clk
0:02:58.5]} 7. h3 {[%clk 0:02:57.7]} 7... O-O {[%clk 0:02:58.8]} 8. Be3 {[%clk
0:02:57.3]} 8... d6 {[%clk 0:02:56.5]} 9. O-O {[%clk 0:02:56.6]} 9... b6 {[%clk
0:02:55.3]} 10. Qd2 {[%clk 0:02:56.2]} 10... Nd4 {[%clk 0:02:26.3]} 11. f4
{[%clk 0:02:52.5]} 11... Nxe2+ {[%clk 0:02:20.4]} 12. Qxe2 {[%clk 0:02:47.6]}
12... Bd7 {[%clk 0:02:06.3]} 13. g4 {[%clk 0:02:43.5]} 13... h6 {[%clk
0:01:45.5]} 14. f5 {[%clk 0:02:42]} 14... Qc8 {[%clk 0:01:37]} 15. Kh2 {[%clk
0:02:29.1]} 15... gxf5 {[%clk 0:01:32.4]} 16. gxf5 {[%clk 0:02:21.3]} 16... Bc6
{[%clk 0:01:15.7]} 17. Rg1 {[%clk 0:02:19.2]} 17... Re8 {[%clk 0:01:05.1]} 18.
Qd2 {[%clk 0:02:14.4]} 18... d5 {[%clk 0:00:57.9]} 19. Bxh6 {[%clk 0:02:07.4]}
19... Bxh6 {[%clk 0:00:38]} 20. Qxh6 {[%clk 0:02:06.3]} 20... Ng4+ {[%clk
0:00:09.9]} 21. hxg4 {[%clk 0:01:43.5]} 21... f6 {[%clk 0:00:03.3]} 22. Qg6+
{[%clk 0:01:37.1]} 1-0

[Event "Betsys MČR v online bleskovém šachu 2021"]
[Site "Chess.com"]
[Date "2021.04.17"]
[Round "2"]
[White "vit_rosenbaum"]
[Black "SanyH"]
[Result "1-0"]
[WhiteElo "2208"]
[BlackElo "1616"]
[TimeControl "180+1"]
[EndTime "9:15:48 PDT"]
[Termination "Uživatel vit_rosenbaum zvítězil matem"]

1. e4 {[%clk 0:03:00.9]} 1... c5 {[%clk 0:02:56.3]} 2. Nc3 {[%clk 0:02:59.5]}
2... Nc6 {[%clk 0:02:56.4]} 3. g3 {[%clk 0:02:59.9]} 3... g6 {[%clk 0:02:55.8]}
4. Bg2 {[%clk 0:03:00.3]} 4... Bg7 {[%clk 0:02:56]} 5. d3 {[%clk 0:02:59.7]}
5... Nf6 {[%clk 0:02:56.2]} 6. Be3 {[%clk 0:02:59.8]} 6... d6 {[%clk 0:02:52.7]}
7. h3 {[%clk 0:02:59.2]} 7... O-O {[%clk 0:02:52.1]} 8. Qd2 {[%clk 0:02:59.5]}
8... Bd7 {[%clk 0:02:48.4]} 9. Bh6 {[%clk 0:02:48.9]} 9... Rc8 {[%clk
0:02:39.6]} 10. Nge2 {[%clk 0:02:47]} 10... Be6 {[%clk 0:02:32.1]} 11. O-O
{[%clk 0:02:35.2]} 11... d5 {[%clk 0:02:27.4]} 12. Bxg7 {[%clk 0:02:32.7]} 12...
Kxg7 {[%clk 0:02:26.9]} 13. Nf4 {[%clk 0:02:32.1]} 13... dxe4 {[%clk 0:02:13.9]}
14. Nxe6+ {[%clk 0:02:31.1]} 14... fxe6 {[%clk 0:02:13]} 15. Nxe4 {[%clk
0:02:30.3]} 15... Nxe4 {[%clk 0:02:06.6]} 16. Bxe4 {[%clk 0:02:29.8]} 16... Qd4
{[%clk 0:01:57.2]} 17. c3 {[%clk 0:02:13.9]} 17... Qe5 {[%clk 0:01:53.6]} 18.
Rae1 {[%clk 0:02:11.3]} 18... Qh5 {[%clk 0:01:50.5]} 19. Bg2 {[%clk 0:02:00.8]}
19... Ne5 {[%clk 0:01:49.9]} 20. d4 {[%clk 0:01:56.5]} 20... cxd4 {[%clk
0:01:48.8]} 21. Qxd4 {[%clk 0:01:55.3]} 21... Kf6 {[%clk 0:01:21.9]} 22. f4
{[%clk 0:01:50.5]} 22... Kf7 {[%clk 0:01:14.3]} 23. Rxe5 {[%clk 0:01:38.2]}
23... Qh6 {[%clk 0:01:10.6]} 24. Rfe1 {[%clk 0:01:37.9]} 24... Rfd8 {[%clk
0:00:57.1]} 25. Qe3 {[%clk 0:01:33]} 25... Rd6 {[%clk 0:00:49.6]} 26. Rxe6
{[%clk 0:01:32.8]} 26... Rxe6 {[%clk 0:00:44.1]} 27. Qxe6+ {[%clk 0:01:32.2]}
27... Kf8 {[%clk 0:00:43.6]} 28. Qxc8+ {[%clk 0:01:27.1]} 28... Kf7 {[%clk
0:00:40.9]} 29. Qe6+ {[%clk 0:01:26.5]} 29... Kg7 {[%clk 0:00:39.9]} 30. Qxe7+
{[%clk 0:01:26.1]} 30... Kg8 {[%clk 0:00:39.3]} 31. Bd5+ {[%clk 0:01:25.6]}
31... Kh8 {[%clk 0:00:38.4]} 32. Qe8+ {[%clk 0:01:25.4]} 32... Kg7 {[%clk
0:00:37.4]} 33. Qf7+ {[%clk 0:01:23.2]} 33... Kh8 {[%clk 0:00:36.9]} 34. Qg8#
{[%clk 0:01:24.1]} 1-0

[Event "Betsys MČR v online bleskovém šachu 2021"]
[Site "Chess.com"]
[Date "2021.04.17"]
[Round "2"]
[White "Dale00007"]
[Black "starypomalymuz"]
[Result "1-0"]
[WhiteElo "1403"]
[BlackElo "1786"]
[TimeControl "180+1"]
[EndTime "9:15:56 PDT"]
[Termination "Uživatel Dale00007 zvítězil matem"]

1. e4 {[%clk 0:03:00.9]} 1... e6 {[%clk 0:02:59.2]} 2. d4 {[%clk 0:02:58.6]}
2... a6 {[%clk 0:02:59.2]} 3. Nc3 {[%clk 0:02:54.8]} 3... b5 {[%clk 0:02:59]} 4.
Nf3 {[%clk 0:02:54]} 4... Bb7 {[%clk 0:02:59.1]} 5. Bd3 {[%clk 0:02:47]} 5...
Nf6 {[%clk 0:02:58.2]} 6. e5 {[%clk 0:02:38.3]} 6... Nd5 {[%clk 0:02:57.5]} 7.
Nxd5 {[%clk 0:02:27]} 7... Bxd5 {[%clk 0:02:57]} 8. O-O {[%clk 0:02:19.3]} 8...
c5 {[%clk 0:02:56.6]} 9. c3 {[%clk 0:02:14.6]} 9... cxd4 {[%clk 0:02:56.2]} 10.
cxd4 {[%clk 0:02:14]} 10... Nc6 {[%clk 0:02:56.7]} 11. Re1 {[%clk 0:02:09.7]}
11... Be7 {[%clk 0:02:55.8]} 12. Be4 {[%clk 0:02:09.3]} 12... Bxe4 {[%clk
0:02:54]} 13. Rxe4 {[%clk 0:02:08.5]} 13... Qb6 {[%clk 0:02:47.9]} 14. a3 {[%clk
0:02:05.4]} 14... Rc8 {[%clk 0:02:45.3]} 15. Be3 {[%clk 0:02:04]} 15... Na5
{[%clk 0:02:35.3]} 16. Rc1 {[%clk 0:01:44.6]} 16... Nc4 {[%clk 0:02:33.1]} 17.
Bg5 {[%clk 0:01:34.7]} 17... Bxg5 {[%clk 0:02:27.2]} 18. Nxg5 {[%clk 0:01:34.1]}
18... O-O {[%clk 0:02:27]} 19. Qh5 {[%clk 0:01:28]} 19... h6 {[%clk 0:02:24.3]}
20. Rh4 {[%clk 0:01:13.9]} 20... f5 {[%clk 0:02:09.2]} 21. Qg6 {[%clk 0:01:05]}
21... hxg5 {[%clk 0:02:01.1]} 22. Rh7 {[%clk 0:00:49.6]} 22... Rf7 {[%clk
0:01:43.5]} 23. Qh5 {[%clk 0:00:48.7]} 23... Kf8 {[%clk 0:01:19]} 24. Rh8+
{[%clk 0:00:47.8]} 24... Ke7 {[%clk 0:01:18.7]} 25. Rxc8 {[%clk 0:00:46.6]}
25... Qxd4 {[%clk 0:01:16.4]} 26. Qxg5+ {[%clk 0:00:45.1]} 26... Rf6 {[%clk
0:01:11.9]} 27. Qxg7+ {[%clk 0:00:44.5]} 27... Rf7 {[%clk 0:01:10.7]} 28. Qg5+
{[%clk 0:00:40.3]} 28... Rf6 {[%clk 0:01:10.6]} 29. Qxf6# {[%clk 0:00:39.6]} 1-0

[Event "Betsys MČR v online bleskovém šachu 2021"]
[Site "Chess.com"]
[Date "2021.04.17"]
[Round "2"]
[White "Asmodai5"]
[Black "VojtaT"]
[Result "0-1"]
[WhiteElo "1167"]
[BlackElo "1731"]
[TimeControl "180+1"]
[EndTime "9:15:56 PDT"]
[Termination "Uživatel VojtaT zvítězil na čas"]

1. e4 {[%clk 0:03:00.9]} 1... c5 {[%clk 0:02:53.3]} 2. Nf3 {[%clk 0:02:59.6]}
2... Nc6 {[%clk 0:02:50.6]} 3. d4 {[%clk 0:02:55.9]} 3... cxd4 {[%clk
0:02:51.5]} 4. Nxd4 {[%clk 0:02:55.5]} 4... Nf6 {[%clk 0:02:52]} 5. Nc3 {[%clk
0:02:54.6]} 5... d6 {[%clk 0:02:52.3]} 6. Bb5 {[%clk 0:02:48.5]} 6... Bd7 {[%clk
0:02:51.4]} 7. Bxc6 {[%clk 0:02:45.8]} 7... bxc6 {[%clk 0:02:50.9]} 8. O-O
{[%clk 0:02:38]} 8... g6 {[%clk 0:02:49.4]} 9. Bg5 {[%clk 0:02:32.4]} 9... Bg7
{[%clk 0:02:49.7]} 10. Nce2 {[%clk 0:02:24.5]} 10... Nxe4 {[%clk 0:02:44]} 11.
Qd3 {[%clk 0:02:15.1]} 11... Nxg5 {[%clk 0:02:42.6]} 12. Qg3 {[%clk 0:01:55.6]}
12... Ne6 {[%clk 0:02:33.7]} 13. Nf3 {[%clk 0:01:52.4]} 13... O-O {[%clk
0:02:31.6]} 14. Nc3 {[%clk 0:01:42.7]} 14... Rb8 {[%clk 0:02:28.6]} 15. Rab1
{[%clk 0:01:40]} 15... Qc7 {[%clk 0:02:20.1]} 16. Rfe1 {[%clk 0:01:23.7]} 16...
Rfd8 {[%clk 0:02:07.3]} 17. Nh4 {[%clk 0:01:10.2]} 17... d5 {[%clk 0:01:56.9]}
18. Qf3 {[%clk 0:01:00.9]} 18... Qf4 {[%clk 0:01:47.3]} 19. Qxf4 {[%clk
0:00:30.9]} 19... Nxf4 {[%clk 0:01:47]} 20. Na4 {[%clk 0:00:24.7]} 20... Ne6
{[%clk 0:01:43.4]} 21. Nf3 {[%clk 0:00:23.3]} 21... c5 {[%clk 0:01:42.7]} 22. b3
{[%clk 0:00:17.2]} 22... Bxa4 {[%clk 0:01:40.2]} 23. bxa4 {[%clk 0:00:15.7]}
23... Kf8 {[%clk 0:01:40.4]} 24. Rbd1 {[%clk 0:00:11.9]} 24... d4 {[%clk
0:01:39.6]} 25. Re2 {[%clk 0:00:05.2]} 25... Nf4 {[%clk 0:01:38.1]} 26. Re4
{[%clk 0:00:01.8]} 26... Nd5 {[%clk 0:01:34.3]} 0-1

[Event "Betsys MČR v online bleskovém šachu 2021"]
[Site "Chess.com"]
[Date "2021.04.17"]
[Round "2"]
[White "Herracek"]
[Black "Akdub"]
[Result "1-0"]
[WhiteElo "2615"]
[BlackElo "2093"]
[TimeControl "180+1"]
[EndTime "9:15:59 PDT"]
[Termination "Uživatel Herracek zvítězil po vzdání soupeře"]

1. c4 {[%clk 0:03:00.9]} 1... c5 {[%clk 0:02:59.2]} 2. g3 {[%clk 0:03:01]} 2...
Nc6 {[%clk 0:02:59.5]} 3. Bg2 {[%clk 0:03:01.4]} 3... d6 {[%clk 0:02:59.6]} 4.
Nc3 {[%clk 0:03:01.9]} 4... g6 {[%clk 0:02:59.6]} 5. d3 {[%clk 0:03:01]} 5...
Bg7 {[%clk 0:02:59.4]} 6. Bg5 {[%clk 0:03:01.5]} 6... h6 {[%clk 0:02:57.1]} 7.
Bd2 {[%clk 0:03:01.3]} 7... Nf6 {[%clk 0:02:56]} 8. Qc1 {[%clk 0:03:01.7]} 8...
e5 {[%clk 0:02:52]} 9. Rb1 {[%clk 0:03:00.6]} 9... a6 {[%clk 0:02:50.1]} 10. a3
{[%clk 0:03:00.8]} 10... Rb8 {[%clk 0:02:40.3]} 11. b4 {[%clk 0:03:00.6]} 11...
Nd4 {[%clk 0:02:29.1]} 12. e3 {[%clk 0:02:58.6]} 12... Ne6 {[%clk 0:02:25.5]}
13. Nge2 {[%clk 0:02:52.7]} 13... O-O {[%clk 0:02:19.5]} 14. e4 {[%clk
0:02:52.5]} 14... Kh7 {[%clk 0:02:17.7]} 15. h4 {[%clk 0:02:52.2]} 15... Nd4
{[%clk 0:02:16.2]} 16. Nxd4 {[%clk 0:02:46.8]} 16... cxd4 {[%clk 0:02:12.9]} 17.
Nd5 {[%clk 0:02:32.7]} 17... Nxd5 {[%clk 0:02:10.2]} 18. exd5 {[%clk 0:02:33.6]}
18... f5 {[%clk 0:01:54]} 19. c5 {[%clk 0:02:32.4]} 19... e4 {[%clk 0:01:27]}
20. h5 {[%clk 0:02:31.8]} 20... g5 {[%clk 0:00:56.7]} 21. dxe4 {[%clk
0:02:31.1]} 21... fxe4 {[%clk 0:00:43.2]} 22. Bxe4+ {[%clk 0:02:30.5]} 22... Bf5
{[%clk 0:00:43.7]} 23. Bxf5+ {[%clk 0:02:27.3]} 23... Rxf5 {[%clk 0:00:42.4]}
24. O-O {[%clk 0:02:21.3]} 24... Rxd5 {[%clk 0:00:39.4]} 25. c6 {[%clk
0:02:16.3]} 25... bxc6 {[%clk 0:00:26.3]} 26. Qxc6 {[%clk 0:02:17.2]} 26... Re5
{[%clk 0:00:23.7]} 27. Rbc1 {[%clk 0:02:11.7]} 27... a5 {[%clk 0:00:22.1]} 28.
bxa5 {[%clk 0:02:08.6]} 28... Re2 {[%clk 0:00:18.2]} 29. Bb4 {[%clk 0:02:05.7]}
29... d5 {[%clk 0:00:15.9]} 30. Qg6+ {[%clk 0:02:03.4]} 30... Kh8 {[%clk
0:00:15.4]} 31. Rce1 {[%clk 0:01:58.2]} 31... d3 {[%clk 0:00:12]} 32. Qxd3
{[%clk 0:01:57.2]} 32... Qe8 {[%clk 0:00:09.6]} 33. Rxe2 {[%clk 0:01:56.4]}
33... Qxh5 {[%clk 0:00:09.5]} 34. Re7 {[%clk 0:01:54.6]} 34... Rg8 {[%clk
0:00:07]} 35. Bc3 {[%clk 0:01:53.4]} 1-0

[Event "Betsys MČR v online bleskovém šachu 2021"]
[Site "Chess.com"]
[Date "2021.04.17"]
[Round "2"]
[White "Pantata007"]
[Black "MichalTrhal"]
[Result "1-0"]
[WhiteElo "2270"]
[BlackElo "1923"]
[TimeControl "180+1"]
[EndTime "9:16:01 PDT"]
[Termination "Uživatel Pantata007 zvítězil po vzdání soupeře"]

1. d4 {[%clk 0:02:33.4]} 1... Nf6 {[%clk 0:02:59.3]} 2. c4 {[%clk 0:02:32.8]}
2... c5 {[%clk 0:02:58.5]} 3. d5 {[%clk 0:02:32.8]} 3... b5 {[%clk 0:02:57.5]}
4. cxb5 {[%clk 0:02:33.7]} 4... a6 {[%clk 0:02:56.8]} 5. bxa6 {[%clk 0:02:34.6]}
5... Bxa6 {[%clk 0:02:55]} 6. Nc3 {[%clk 0:02:34.8]} 6... g6 {[%clk 0:02:54.1]}
7. e4 {[%clk 0:02:35.1]} 7... Bxf1 {[%clk 0:02:52.7]} 8. Kxf1 {[%clk 0:02:36]}
8... d6 {[%clk 0:02:51.7]} 9. g3 {[%clk 0:02:36.3]} 9... Bg7 {[%clk 0:02:51.1]}
10. Kg2 {[%clk 0:02:36.6]} 10... O-O {[%clk 0:02:50.3]} 11. Nf3 {[%clk
0:02:37.1]} 11... e6 {[%clk 0:02:50.2]} 12. dxe6 {[%clk 0:02:33.6]} 12... fxe6
{[%clk 0:02:49.6]} 13. e5 {[%clk 0:02:32.7]} 13... Ng4 {[%clk 0:02:29.2]} 14.
Qxd6 {[%clk 0:02:18.9]} 14... Qc8 {[%clk 0:02:09.6]} 15. Bf4 {[%clk 0:01:53.2]}
15... g5 {[%clk 0:01:46.5]} 16. Nxg5 {[%clk 0:01:17.5]} 16... Qb7+ {[%clk
0:01:33.8]} 17. f3 {[%clk 0:00:53.8]} 17... Rxf4 {[%clk 0:00:51.5]} 18. gxf4
{[%clk 0:00:48.5]} 18... Ne3+ {[%clk 0:00:49.2]} 19. Kf2 {[%clk 0:00:39.4]} 1-0

[Event "Betsys MČR v online bleskovém šachu 2021"]
[Site "Chess.com"]
[Date "2021.04.17"]
[Round "2"]
[White "marfuss"]
[Black "VojtechPlat"]
[Result "0-1"]
[WhiteElo "2104"]
[BlackElo "2865"]
[TimeControl "180+1"]
[EndTime "9:16:02 PDT"]
[Termination "Uživatel VojtechPlat zvítězil po vzdání soupeře"]

1. d4 {[%clk 0:02:58.8]} 1... d6 {[%clk 0:02:59.5]} 2. Bf4 {[%clk 0:02:58.5]}
2... Nf6 {[%clk 0:02:57.5]} 3. e3 {[%clk 0:02:58.4]} 3... Nbd7 {[%clk
0:02:56.8]} 4. Nf3 {[%clk 0:02:56.4]} 4... c5 {[%clk 0:02:56.7]} 5. c3 {[%clk
0:02:56]} 5... b6 {[%clk 0:02:56.5]} 6. Nbd2 {[%clk 0:02:49.8]} 6... Bb7 {[%clk
0:02:56]} 7. Bd3 {[%clk 0:02:46.6]} 7... g6 {[%clk 0:02:55.3]} 8. O-O {[%clk
0:02:31.8]} 8... Bg7 {[%clk 0:02:46.4]} 9. h3 {[%clk 0:02:26.4]} 9... O-O {[%clk
0:02:44.6]} 10. e4 {[%clk 0:02:01.8]} 10... Re8 {[%clk 0:02:37]} 11. e5 {[%clk
0:01:43.8]} 11... dxe5 {[%clk 0:02:08.4]} 12. Nxe5 {[%clk 0:01:37.8]} 12... cxd4
{[%clk 0:02:04.5]} 13. cxd4 {[%clk 0:01:29.4]} 13... Nd5 {[%clk 0:02:03.1]} 14.
Bh2 {[%clk 0:00:58.6]} 14... Nxe5 {[%clk 0:02:02.3]} 15. Bxe5 {[%clk 0:00:52.3]}
15... Bxe5 {[%clk 0:02:00.4]} 16. dxe5 {[%clk 0:00:53.2]} 16... Ne3 {[%clk
0:01:59.9]} 17. Qb3 {[%clk 0:00:23.7]} 17... Bd5 {[%clk 0:01:51.6]} 18. Qa3
{[%clk 0:00:15.6]} 18... Nxf1 {[%clk 0:01:43.2]} 19. Nxf1 {[%clk 0:00:16.5]}
19... e6 {[%clk 0:01:38]} 20. Bb5 {[%clk 0:00:13.2]} 20... Rf8 {[%clk
0:01:36.1]} 21. Ne3 {[%clk 0:00:13.4]} 21... Qg5 {[%clk 0:01:35]} 22. Bf1 {[%clk
0:00:06.6]} 22... Qxe5 {[%clk 0:01:33.5]} 23. Rd1 {[%clk 0:00:05.4]} 23... Rfd8
{[%clk 0:01:32.5]} 24. Re1 {[%clk 0:00:04.3]} 24... Qg7 {[%clk 0:01:31.2]} 25.
Qb4 {[%clk 0:00:01.7]} 25... Rac8 {[%clk 0:01:29.4]} 26. Qb3 {[%clk 0:00:02]}
26... Bxb3 {[%clk 0:01:28.7]} 27. axb3 {[%clk 0:00:02.9]} 0-1

[Event "Betsys MČR v online bleskovém šachu 2021"]
[Site "Chess.com"]
[Date "2021.04.17"]
[Round "2"]
[White "polik1112"]
[Black "sodikus"]
[Result "0-1"]
[WhiteElo "1493"]
[BlackElo "2306"]
[TimeControl "180+1"]
[EndTime "9:16:02 PDT"]
[Termination "Uživatel sodikus zvítězil na čas"]

1. e4 {[%clk 0:03:00.9]} 1... e5 {[%clk 0:02:59.4]} 2. Nf3 {[%clk 0:02:59.9]}
2... Nc6 {[%clk 0:02:59.7]} 3. Bb5 {[%clk 0:02:59.6]} 3... a6 {[%clk 0:02:59.5]}
4. Bxc6 {[%clk 0:02:59.2]} 4... dxc6 {[%clk 0:02:59.9]} 5. O-O {[%clk
0:02:58.9]} 5... Qf6 {[%clk 0:02:59.7]} 6. d4 {[%clk 0:02:54.1]} 6... exd4
{[%clk 0:02:57.8]} 7. Nxd4 {[%clk 0:02:49.4]} 7... Bd7 {[%clk 0:02:28.4]} 8. Nc3
{[%clk 0:02:36.9]} 8... Bd6 {[%clk 0:02:16.6]} 9. Be3 {[%clk 0:02:02.7]} 9...
Ne7 {[%clk 0:02:14.7]} 10. f4 {[%clk 0:01:46.9]} 10... Bb4 {[%clk 0:01:46.9]}
11. e5 {[%clk 0:01:28.5]} 11... Qg6 {[%clk 0:01:41.8]} 12. Rf3 {[%clk
0:01:02.3]} 12... Bg4 {[%clk 0:01:32.4]} 13. a3 {[%clk 0:00:28.5]} 13... Bxc3
{[%clk 0:01:28.9]} 14. bxc3 {[%clk 0:00:27.2]} 14... Bxf3 {[%clk 0:01:27.7]} 15.
Qxf3 {[%clk 0:00:26.3]} 15... Nf5 {[%clk 0:01:20.4]} 16. g4 {[%clk 0:00:19.2]}
16... Nxe3 {[%clk 0:01:18.8]} 17. Qxe3 {[%clk 0:00:07.7]} 17... Qxg4+ {[%clk
0:01:18.5]} 18. Qg3 {[%clk 0:00:06.5]} 18... Qxg3+ {[%clk 0:01:17.7]} 19. hxg3
{[%clk 0:00:06.4]} 19... O-O-O {[%clk 0:01:12.4]} 0-1